Cogmind - Beta 16 @@@ ROGUE MODE // 2025.11.27 @ 18:49:39 Player: Red Box Result: Destroyed by S-10 Pest with Light Assault Rifle Performance ------------- Evolutions (0) 0 Regions Visited (3) 600 Robots Destroyed (42) 210 Value Destroyed (995) 995 Prototype IDs (15) 300 Alien Tech Used (0) 0 Bonus (-14) -14 TOTAL SCORE: 2091 Bonus ------- Follower Combat Kills 7 Friendly Fire -21 Cogmind --------- Core Integrity 0/250 Matter 100/300 Energy 152/200 System Corruption 0% Temperature Cool (0) Movement Rolling (125) Ox3 Location -10/Subcaves Parts ------- > --- POWER (1) -------- Subdweller Power Source > --- PROPULSION (2) --- Spiked Treads Wheel > --- UTILITY (2) ------ Large Storage Unit Makeshift Light Armor Plating > --- WEAPON (2) ------- Subdweller Beam Cannon Makeshift Axe > --- INVENTORY (15) --- Arachnoskeleton High-capacity Matter Pod (200) Experimental Sensor Array Makeshift Thermal Plating Scrap Shield Rainbow Chip Riot Gun Makeshift Laser Subdweller Machine Gun Barrage Gun Battle Cannon Subdweller Shrapnel Launcher Peak State ------------ > --- POWER ------------ Subdweller Power Source > --- PROPULSION ------- Subdweller Monowheel Subdweller Monowheel > --- UTILITY ---------- Large Storage Unit Makeshift Light Armor Plating > --- WEAPON ----------- Riot Gun Makeshift Axe > --- INVENTORY -------- Subdweller Power Source Arachnoskeleton High-capacity Matter Pod Experimental Sensor Array Scrap Shield Rainbow Chip Riot Gun Subdweller Laser Makeshift Laser Subdweller Beam Cannon Subdweller Machine Gun Subdweller Shrapnel Launcher [Rating: 24] Favorites ----------- Power Ion Engine Engine Ion Engine Propulsion Aluminum Leg Treads Light Treads Leg Aluminum Leg Wheel Compact Wheel Utility Large Storage Unit Device Improved Terrain Scanner Storage Large Storage Unit Protection Core Shielding Weapon Shotgun Energy Gun EM Pulse Gun Energy Cannon Subdweller Beam Cannon Ballistic Gun Shotgun Ballistic Cannon Battle Cannon Launcher Rocket Launcher Special Weapon Mining Laser Slashing Weapon Makeshift Axe Build | -11 -10 -10 -10 ------- Run | Yrd Mat Min Sub Slots Evolved . | . . . . Power . | . . . . Propulsion . | . . . . Utility . | . . . . Weapon . | . . . . Parts Attached 51 | 8 11 1 31 Power 5 | 1 . . 4 Engine 5 | 1 . . 4 Core . | . . . . Reactor . | . . . . Propulsion 12 | 2 2 . 8 Treads 3 | . . . 3 Leg 4 | 2 2 . . Wheel 5 | . . . 5 Hover . | . . . . Flight . | . . . . Utility 12 | 3 4 1 4 Device 5 | 2 1 1 1 Storage 3 | 1 2 . . Processor . | . . . . Hackware . | . . . . Protection 4 | . 1 . 3 Artifact . | . . . . Weapon 22 | 2 5 . 15 Energy Gun 7 | 1 2 . 4 Energy Cannon 2 | . . . 2 Ballistic Gun 7 | 1 2 . 4 Ballistic Cannon 1 | . . . 1 Launcher 3 | . . . 3 Special Weapon 1 | . 1 . . Impact Weapon . | . . . . Slashing Weapon 1 | . . . 1 Piercing Weapon . | . . . . Special Melee Weapon . | . . . . Unidentified Prototypes 1 | . . 1 . Parts Lost 11 | . 1 . 10 Power 1 | . . . 1 Propulsion 3 | . . . 3 Utility 2 | . 1 . 1 Weapon 5 | . . . 5 Highest Loss Streak 5 | . 1 . 5 To Critical Strikes . | . . . . Average Backups 12 | 5 11 15 12 Power . | . . . . Propulsion 2 | 3 3 3 1 Utility 3 | . 2 4 4 Weapon 5 | 1 4 7 6 Tool/Special . | . . . . Unused Backups 10 | . 2 . 8 Power 1 | . 1 . . Propulsion 2 | . 1 . 1 Utility 4 | . . . 4 Weapon 2 | . . . 2 Tool/Special 1 | . . . 1 Average Slot Usage (%) 99 | . 99 100 98 Engine 13 | . 14 14 13 Treads 6 | . . . 12 Leg 14 | . 28 28 1 Wheel 6 | . . . 13 Device 2 | . 4 . 2 Storage 13 | . 14 14 13 Protection 11 | . 9 14 11 Energy Gun 8 | . 14 . 7 Energy Cannon 2 | . . . 4 Ballistic Gun 15 | . 12 28 14 Peak Build Rating 24 | 9 11 19 24 Average Rating 13 | 6 9 11 16 On Entrance 7 | . 9 11 11 Avg Prop Armor Cover (%) 9 | . . . 9 Naked Turns . | . . . . Heaviest Build 41 | 15 32 32 41 Greatest Support 40 | 20 20 20 40 Greatest Overweight (x) 3 | . 1 1 3 Average Overweight (x) 1 | . . 1 1 Largest Inventory Capacity 15 | 8 15 15 15 Average Capacity 13 | 7 11 15 14 Most Carried 15 | 7 15 15 15 Average Carried 13 | 5 11 14 14 Final Capacity 15 | 8 15 15 15 Final Carried 15 | 7 15 15 15 Class Distribution -------------------- 80% | Mutant 15% | Derelict-Mutant 4% | Scavenger-Mutant Dominant Class ---------------- Mutant | -10/Materials Mutant | -10/Mines Mutant | -10/Subcaves Resources | -11 -10 -10 -10 ----------- Run | Yrd Mat Min Sub Matter Collected 1497 | 316 380 62 739 Remotely . | . . . . Salvage Created 1133 | 208 405 39 481 Parts 75 | 15 31 4 25 Haulers Intercepted 2 | . 2 . . Recyclers Shooed . | . . . . Parts Field Recycled . | . . . . Retrieved Matter . | . . . . Parts Self-Destructed 11 | . . . 11 Prevented . | . . . . Parts Restored . | . . . . Kills | -11 -10 -10 -10 ------- Run | Yrd Mat Min Sub Combat Hostiles Destroyed 28 | . 7 3 18 Guns 21 | . 7 3 11 Cannons 1 | . . . 1 AOE 6 | . . . 6 Classes Destroyed 9 | 2 5 . 2 Worker 1 | . 1 . . Tunneler 7 | 6 1 . . Hauler 2 | . 2 . . Recycler 1 | 1 . . . Watcher 3 | . 3 . . Swarmer 8 | . 4 3 1 Grunt 3 | . 3 . . Sentry 1 | . . . 1 Subdweller 16 | . . . 16 Best Kill Streak 4 | 4 4 3 4 Combat Bots Only 4 | . 2 3 4 Max Kills in Single Turn 1 | 1 1 1 1 Gunslinging . | . . . . Exploded 1 | . . . 1 Melee . | . . . . Uniques/NPCs Destroyed . | . . . . Combat | -11 -10 -10 -10 -------- Run | Yrd Mat Min Sub Hostile Shots Fired 144 | . 46 9 89 Missed 35 | . 12 1 22 Hits 109 | . 34 8 67 Projectile 109 | . 34 8 67 AOE 4 | . . . 4 Critical Strikes 3 | . . . 3 Actively Blocked 1 | . . . 1 Damage Taken 2182 | . 378 59 1745 Core 252 | . 47 20 185 Absorbed by Shields . | . . . . Redirected to Shielding 21 | . 1 3 17 Regen/Repaired (Parts) 66 | . 66 . . Core Remaining (%) 100 | 100 . . . Volleys Fired 137 | 12 45 4 76 Largest 2 | 2 2 2 2 Hottest 110 | 70 100 46 110 Shots Fired 237 | 24 85 8 120 Gun 191 | 24 84 8 75 Cannon 32 | . . . 32 Launcher 13 | . . . 13 Special 1 | . 1 . . Kinetic 109 | 12 15 8 74 Thermal 60 | 12 16 . 32 Explosive 8 | . . . 8 Electromagnetic 60 | . 54 . 6 Robot Hit Streak 16 | 4 11 6 16 Robot Miss Streak 4 | 3 4 3 2 Penetration Max . | . . . . Secondary Targets 4 | . 1 1 2 Max Gunslinging Chain 1 | . 1 1 1 Shots Hit Robots 144 | 12 50 7 75 Core Hits 72 | 7 22 3 40 Critical Kills 1 | . . . 1 Critical Parts Destroyed . | . . . . Critical Strikes 4 | . 2 . 2 Burn 1 | . 1 . . Destroy 2 | . . . 2 Corrupt 1 | . 1 . . Melee Attacks 13 | . . . 13 Impact . | . . . . Slashing 13 | . . . 13 Piercing . | . . . . Sneak Attacks . | . . . . Combat Hostiles . | . . . . Follow-up Attacks . | . . . . Damage Inflicted 3058 | 184 722 91 2061 Guns 2002 | 184 694 91 1033 Cannons 138 | . . . 138 Explosions 918 | . 28 . 890 Melee . | . . . . Ramming . | . . . . Kinetic 1718 | 96 127 91 1404 Thermal 383 | 88 157 . 138 Explosive 428 | . . . 428 Electromagnetic 529 | . 438 . 91 Impact . | . . . . Slashing . | . . . . Piercing . | . . . . Highest Corruption . | . . . . Average Corruption . | . . . . Corruption Purged . | . . . . Corruption Blocked . | . . . . Overload Shots . | . . . . Overflow Damage 9 | . . . 9 Projectiles . | . . . . Explosions 9 | . . . 9 Melee . | . . . . Knockbacks . | . . . . Impact . | . . . . Kinetic . | . . . . Secondary . | . . . . Self-Inflicted Damage 85 | . . . 85 Shots 3 | . . . 3 Rammed . | . . . . Targets Rammed . | . . . . Kicked . | . . . . Crushed . | . . . . Highest Temperature 254 | 27 177 . 254 Average Temperature 40 | 10 46 . 47 Received Heat Transfer 702 | . 144 . 558 Siege Activations . | . . . . Martial Activations . | . . . . Shielding Activations . | . . . . Robots Disrupted 1 | . 1 . . Combat Hostiles 1 | . 1 . . Robots Corrupted . | . . . . Combat Hostiles . | . . . . Parts Fried 2 | . 2 . . Impact Corruptions . | . . . . Robots Melted . | . . . . Combat Hostiles . | . . . . Parts Melted 1 | . . 1 . Heat Transferred 938 | 259 494 . 185 Parts Sabotaged . | . . . . Parts Stolen . | . . . . Parts Stripped . | . . . . Power Chain Reactions 1 | . 1 . . Alert | -11 -10 -10 -10 ------- Run | Yrd Mat Min Sub Maximum Alert Level . | . . . . Low Security (%) 100 | 100 100 100 . Level 1 . | . . . . Level 2 . | . . . . Level 3 . | . . . . Level 4 . | . . . . Level 5 . | . . . . High Security . | . . . . Max Security . | . . . . Peak Influence 105 | 10 105 74 . Initial . | . . . . Average 12 | 1 16 6 . Influence Increases 476 | 35 321 80 40 Destroy 0b10 Robot/C 260 | . 160 60 40 Destroy 0b10 Robot/NC 70 | 35 35 . . Destroy Leader 30 | . 20 10 . Allied During Kill 9 | . 5 4 . Successful Hack 28 | . 22 6 . Select Force Hacks 30 | . 30 . . Disable Machine 30 | . 30 . . Destroy Structure 4 | . 4 . . Lose Combat Pursuer 15 | . 15 . . Influence Decreases 476 | 35 321 80 40 Time Decay 466 | 35 311 80 40 Lost Part 10 | . 10 . . Squads Dispatched 1 | . 1 . . Investigation 1 | . 1 . . Extermination . | . . . . Reinforcement . | . . . . Assault . | . . . . Garrison . | . . . . Intercept . | . . . . Searches Triggered . | . . . . Construction Impeded . | . . . . Haulers Reinforced . | . . . . Active Scanning Responses . | . . . . Cargo Convoy Interrupts . | . . . . Stealth | -11 -10 -10 -10 --------- Run | Yrd Mat Min Sub Distress Signals 1 | . 1 . . Communications Jammed . | . . . . Distress Signals . | . . . . Times Spotted 38 | . 16 2 20 Peak Tracking Total 3 | . 3 2 3 Tactical Retreats 1 | . 1 . . Traps | -11 -10 -10 -10 ------- Run | Yrd Mat Min Sub Traps Triggered 2 | . . . 2 Indirectly . | . . . . Trap Hack Attempts . | . . . . Triggered . | . . . . Disarmed . | . . . . Reprogrammed . | . . . . Reused . | . . . . Traps Extracted . | . . . . Installed . | . . . . Triggered . | . . . . Machines | -11 -10 -10 -10 ---------- Run | Yrd Mat Min Sub Machines Disabled 3 | . 2 . 1 Max in Single Turn 1 | . 1 . 1 Machines Repaired . | . . . . Machines Dismantled . | . . . . Machines Sabotaged . | . . . . Overloaded Fab Kills . | . . . . Hacking | -11 -10 -10 -10 --------- Run | Yrd Mat Min Sub Machines Accessed 12 | . 10 1 1 Terminals 8 | . 7 1 . Fabricators . | . . . . Repair Stations 1 | . 1 . . Recycling Units 2 | . 2 . . Scanalyzers . | . . . . Garrison Access . | . . . . Total Hacks 48 | . 41 6 1 Successful 27 | . 24 2 1 Failed 20 | . 16 4 . Catastrophic 3 | . 2 1 . Database Lockouts 1 | . 1 . . Manual 27 | . 21 6 . Terminals 33 | . 27 6 . Fabricators . | . . . . Repair Stations 7 | . 7 . . Recycling Units 7 | . 7 . . Scanalyzers . | . . . . Garrison Access . | . . . . Terminal Hacks 9 | . 6 2 1 Robot Analysis 4 | . 2 2 . Prototype ID Bank 1 | . 1 . . Locate Traps 3 | . 3 . . Proto ID Catalog 1 | . . . 1 Fabricator Hacks . | . . . . Repair Station Hacks 6 | . 6 . . Scan Component 3 | . 3 . . Repair 3 | . 3 . . Recycling Unit Hacks . | . . . . Scanalyzer . | . . . . Garrison Access Hacks . | . . . . Unauthorized Hacks 12 | . 12 . . Terminals 11 | . 11 . . Track 2 | . 2 . . Botnet 3 | . 3 . . Operators 1 | . 1 . . Skim 5 | . 5 . . Fabricators . | . . . . Repair Stations . | . . . . Recycling Units 1 | . 1 . . Tunnel 1 | . 1 . . Scanalyzers . | . . . . Garrison Access . | . . . . Data Cores Recovered . | . . . . Used . | . . . . Hacking Detections 10 | . 9 1 . Full Trace Events 1 | . 1 . . Feedback Events . | . . . . Feedback Blocked . | . . . . Robot Schematics Acquired . | . . . . Robots Built . | . . . . Authchips . | . . . . Time . | . . . . Total Robot Build Rating . | . . . . Part Schematics Acquired . | . . . . Parts Built . | . . . . Authchips . | . . . . Time . | . . . . Total Part Build Rating . | . . . . Part Studies Acquired . | . . . . Parts Repaired 3 | . 3 . . Time 90 | . 90 . . Parts Recycled . | . . . . Recycled Matter . | . . . . Retrieved Matter . | . . . . Retrieved Components . | . . . . Parts Scanalyzed . | . . . . Part Schematics Acquired . | . . . . Parts Damaged . | . . . . Bothacking | -11 -10 -10 -10 ------------ Run | Yrd Mat Min Sub Used RIF Installer . | . . . . Robots Hacked . | . . . . Non-combat . | . . . . Combat . | . . . . Robot Hacks Applied . | . . . . Relay Couplers Released . | . . . . Fabnet Peak Effective % . | . . . . Robots Rewired 1 | . 1 . . Allies Hacked . | . . . . Hacks Repelled . | . . . . Allies | -11 -10 -10 -10 -------- Run | Yrd Mat Min Sub Total Allies 1 | . 1 . . Largest Group 1 | . 1 1 . Highest-Rated Group 16 | . 16 16 . Highest-Rated Ally 16 | . 16 16 . Total Orders 3 | . 3 . . STAY 2 | . 2 . . FOLLOW 1 | . 1 . . Ally Attacks 9 | . 4 5 . Total Damage 72 | . 27 45 . Kills 1 | . 1 . . Allies Corrupted . | . . . . Allies Melted . | . . . . Intel | -11 -10 -10 -10 ------- Run | Yrd Mat Min Sub Active Infowar (turns) 734 | 86 606 1 41 Optics 41 | . . . 41 Sensors 1 | . . 1 . Terrain 692 | 86 606 . . Robot Analysis Total 4 | . 2 2 . Derelict Logs Recovered 5 | . . 2 3 Drone Launches . | . . . . Drone Recoveries . | . . . . Exploration | -11 -10 -10 -10 ------------- Run | Yrd Mat Min Sub Turns Passed 6556 | 220 2157 1048 3131 Spaces Moved 3739 | 144 1214 535 1846 Core 12 | 12 . . . Treads 378 | . . . 378 Legs 1942 | 132 1214 535 61 Wheels 1407 | . . . 1407 Hover . | . . . . Flight . | . . . . Fastest Speed 50 | 50 120 190 100 Average Speed 151 | 114 145 190 148 Slowest Speed 260 | 120 190 190 260 Overloaded Moves . | . . . . Propulsion Burnouts . | . . . . Robots Hopped . | . . . . Potential Cave-ins . | . . . . Cave-ins Triggered . | . . . . Exploration Rate (%) 67 | 5 98 81 85 Regions Visited 3 Branch Regions 2 Pre-discovered Areas 5 | . 1 2 2 Known Exits Taken . | . . . . Unknown Exits Taken 3 | 1 1 1 . Scrap Searched 15 | . . 1 14 Spaces Dug 5 | . 1 . 4 Terrain Destroyed 94 | . 4 . 90 Melee 2 | . . . 2 Projectile 3 | . 1 . 2 AOE 89 | . 3 . 86 Terrain Rammed . | . . . . Walls Destroyed . | . . . . Machines Disabled . | . . . . Actions | -11 -10 -10 -10 --------- Run | Yrd Mat Min Sub Total 4353 | 172 1518 558 2105 Wait 296 | . 221 15 60 Move 3736 | 143 1213 534 1846 Hop . | . . . . Pick Up 54 | 8 15 1 30 Fast Attach 17 | 6 2 . 9 Attach 14 | 1 2 . 11 Detach 2 | . 1 . 1 Swap 46 | 1 10 3 32 Drop 36 | 1 8 1 26 Fire 137 | 12 45 4 76 Melee 13 | . . . 13 Ram . | . . . . Kick . | . . . . Crush . | . . . . Escape Stasis . | . . . . Rewire 1 | . 1 . . Trap . | . . . . Miscellaneous 1 | . . . 1 Route ------- -11/Scrapyard -10/Materials (discovered 5 exits: *Mat x3 / *Min / *Sub) -10/Mines (discovered 3 exits: *Mat x2 / *Sub) -10/Subcaves (discovered 3 exits: [*Mat x2] / Rec) History --------- Turn | Location | Event 5 | -11/Scrapyard | Discovered new exit (range 15) 221 | -11/Scrapyard | Entered Materials 227 | -10/Materials | Discovered new exit (range 10) 317 | -10/Materials | Build established: Mutant 363 | -10/Materials | Discovered new exit (range 15) 602 | -10/Materials | Discovered new exit (range 6) 752 | -10/Materials | Discovered new exit (range 12) 1218 | -10/Materials | Central database locked down 1286 | -10/Materials | Loaded intel: 2 recycling unit locations 1318 | -10/Materials | Discovered new exit (range 10) 1358 | -10/Materials | Learned 4 Recycling zone layouts 1432 | -10/Materials | Repaired EM Pulse Gun 1473 | -10/Materials | Learned location of 2 exits from Materials 1551 | -10/Materials | Learned location of 1 exit from Storage 1559 | -10/Materials | Repaired EM Pulse Gun 1574 | -10/Materials | Learned Storage security intel 1608 | -10/Materials | Learned 4 Recycling zone layouts 1651 | -10/Materials | Repaired Imp. Heat Sink 2378 | -10/Materials | Entered Mines 2378 | -10/Mines | Accompanied by 1 ally 2379 | -10/Mines | Identified exit to Materials 2380 | -10/Mines | Met a Derelict bent on vengeance 2411 | -10/Mines | Learned location of 1 exit from Materials 2665 | -10/Mines | Learned location of Storage (-9) 3159 | -10/Mines | Found a damaged Exp. Sensor Array with a note attached 3164 | -10/Mines | Found Prototype Device 3165 | -10/Mines | Identified Exp. Sensor Array 3413 | -10/Mines | Discovered new exit (range 5) 3426 | -10/Mines | Entered Subcaves 3426 | -10/Subcaves | Accompanied by 1 ally 3427 | -10/Subcaves | Approached by a straggling Scientist 3429 | -10/Subcaves | A swath of the cavern ceiling suddenly collapsed 3521 | -10/Subcaves | Learned Materials emergency access door positions 3547 | -10/Subcaves | Ambushed by Subdweller buried in earth 3769 | -10/Subcaves | Core integrity fell below 50% 4133 | -10/Subcaves | Identified exit to Recycling 4160 | -10/Subcaves | Visited 4L-MR0's lab 4192 | -10/Subcaves | Found Rainbow Chip 4633 | -10/Subcaves | Discovered new exit (range 7) 4733 | -10/Subcaves | A swath of the cavern ceiling suddenly collapsed 5113 | -10/Subcaves | Shifting Twisted Machinery released Sub. Laser 5115 | -10/Subcaves | Shifting Twisted Machinery released Sub. Beam Cannon 5137 | -10/Subcaves | Shifting Twisted Machinery released Flamer 5166 | -10/Subcaves | A Subdweller sparked back to life 5166 | -10/Subcaves | A Subdweller sparked back to life 5166 | -10/Subcaves | A Subdweller sparked back to life 5214 | -10/Subcaves | Found Arachnoskeleton 5233 | -10/Subcaves | Lost 5 parts (2n3w) 5249 | -10/Subcaves | Shifting Twisted Machinery released Mak. Light Armor Plating 5271 | -10/Subcaves | Discovered new exit (range 9) 5298 | -10/Subcaves | Learned location of Zion (-7) 5298 | -10/Subcaves | Met a Zionite searching for "candidates" 5530 | -10/Subcaves | Core integrity fell below 20% 5641 | -10/Subcaves | Disturbed a concealed Subdweller 5829 | -10/Subcaves | Build established: Derelict-Mutant 5956 | -10/Subcaves | Shifting Twisted Machinery released Barrage Gun 6134 | -10/Subcaves | Ambushed by Subdweller buried in earth 6192 | -10/Subcaves | Shifting Twisted Machinery released Sub. Power Source 6557 | -10/Subcaves | Destroyed by S-10 Pest with Light Assault Rifle Last Messages --------------- 05686_ Acquired 10 matter. 05694_ Dropped Sub. Laser. 05697_ Acquired Mak. Thermal Plating. Barrage Gun falls loose from the Twisted Machinery. 06119_ Riot Gun destroyed. 06122_ Acquired Barrage Gun. 06124_ Sub. Monowheel shoots sparks and powers down. 06132_ 3P-RV7(R) destroyed. 06134_ 53-9S8(R) destroyed. 06135_ 2X-WU5(R): "ARGHSUB!" 06137_ Destroyed Sub. Monowheel. 06143_ Sub. Power Source destroyed. 06143_ FN-9TZ(R) destroyed. 06150_ 2X-WU5(R) destroyed. 06153_ Dropped Broken Sub. Monowheel. 06168_ Acquired 23 matter. 06173_ Acquired Wheel. 06178_ Acquired Battle Cannon. Sub. Power Source falls loose from the Twisted Machinery. Map ----- +----------------------------------------------------+ | ## "#### "" " ##???????????????????????? | | #?########""[ # < #???????????????????????? | | ##### "## [ #### ##???????????????????????? | | # # #### ###????????????????????????? | | # ### #??????????????????????????? | | " "## ##?????????????????????????? | | #### * "## #?????????????????????????? | | ## ##! "## ##????????????????? ???? | | ## # # !"#### #???????????????? ??? | | ?# ### "##### """#???????????????# ?? | | ### ### ###" "" #???????????????? ?? | | #### ## ###" "" ##???????????????? ??? | | #??#### ## |"""" #?????????????????? ??? | | ##????## """ """ #?????????????????? #??? | | ######??# #?????>??###???????# #??? | | ## ##?#### & * ##??????"""#????#### ???? | | #????### & & ##"????? "#???## ## #???? | | #??????##& #####" ???t "#??## #???? | | # ## #???????### "##??# ? s#?## ###?? | | ## ### ########## """##?? ? s?## #?# | | ?##### ## """#??? ??# ### | | ????# " ##?### ##??# | | ????## # ### ##&" #?# % #?## | | ?????########?#### #?# # ## ### | | ?????????????????# < ### ## #?##### | | ?????????????????# < ;;@ #?????? | | ?????????????????######### ### #?????? | | ??????????????????????????# ### #?????? | | ??????????????????????????# %## ## ##?????? | | ?????????????#######??#### #### #####??????? | | ?????????????# " ##? ##??# # ##??????? | | ??????????#### " ### ### ????## ##?????? | | ??????????#""# ##]= "## #?#??????## ##????? | | ??????????# #+##% "## #??????##?# #????? | | ??????????#" ##" "# #?????## ## ##????? | | ??????????#" #### ## #?????# #?????? | | ??????????#"" #?# #" #?????## #?????? | | ??????????#"X #?# #??????# ##????? | | ??????????#"" #?# #??????## ##???? | | ??????????#" ### #" #???????## ##??? | | ??????????## ## ###" #???######## #??? | | ??????????#" #### ## #???# #### ##?? | | ??????????# #### ""### ###?# ### ### | | ??????????#####" "###?# ### ## | | ??????????????#####???# | | ??????????????????????## ######## | | ##?????????????????????## ##?####### | | "##?????????????????????# ##?## ### | | ?????????????????????# #### ### | | ??????????????????????## ## ### | +----------------------------------------------------+ Best States ------------- Heat Dissipation 39 Energy Generation 15 Energy Capacity 265 Matter Stores 300 Matter Capacity 300 Sight Range 21 Terrain Scan Range 16 Terrain Scan Density 10 Armor Coverage 150 Core Shielding 20 Evasion (%) 55 Recoil Reduction 2 Item Schematics ----------------- None Robot Schematics ------------------ None Fabricated ------------ Nothing Repaired ---------- EM Pulse Gun | 20% | -10/Materials EM Pulse Gun | 40% | -10/Materials Imp. Heat Sink | 92% | -10/Materials Studied --------- None Alien Tech Used ----------------- None Achievements -------------- None Challenges ------------ None Game ------ Seed GodSixTearclaws Manual? 0 Play Time 00:43:46 Cumulative 737.1 hours Start 2025.11.27 @ 18:03:10 End 2025.11.27 @ 18:49:39 Sessions 1 Manual Loads 0 Difficulty Rogue Special Mode None Game No. 519 Rogue 519 Adventurer 0 Explorer 0 Win Type - Total 1 Types 1/0/0/0/0/0/0/0/0/0 Lore% 71 Gallery% 68 Achievement% 47 Wizard Run 0 Options --------- Layout 1 ASCII 0 Keyboard 0 Movement Mouse Keybinds 0 Fullscreen 1 Font 20/SmallcapsGlow Map View 54x42 Zoom Use 0% Tactical HUD 1 Map Filters NONE Filters NONE Steam 1 RUN: 764f5066-e723-4889-a153-c3ace6113767